Cogmind - Beta 13 @@@ ROGUE MODE // 2024.04.11 @ 20:04:05 Player: Camoedine Result: Destroyed by Y-54 Guardian with Gatling Laser Performance ------------- Evolutions (3) 1500 Regions Visited (5) 1000 Robots Destroyed (65) 325 Value Destroyed (2323) 2323 Prototype IDs (5) 100 Alien Tech Used (0) 0 Bonus (11) 11 TOTAL SCORE: 5259 Bonus ------- High Alert Combat Kills 11 Cogmind --------- Core Integrity 0/700 Matter 32/300 Energy 58/100 System Corruption 1% Temperature Cool (18) Movement Walking (195) Ox1 Location -7/Storage Parts ------- > --- POWER (2) -------- (None) > --- PROPULSION (4) --- Improved Carbon-fiber Leg Improved Titanium Leg > --- UTILITY (4) ------ High-capacity Storage Unit Improved Signal Interpreter Improved Light Armor Plating > --- WEAPON (3) ------- (None) > --- INVENTORY (20) --- Light Ion Engine Light Nuclear Core Improved Heat Sink Improved Cooling System High-capacity Storage Unit Matter Filter Flak Cannon Rocket Launcher Rocket Launcher Rocket Launcher Peak State ------------ > --- POWER ------------ Nuclear Core Improved Deuterium Engine > --- PROPULSION ------- Aluminum Leg Carbon-fiber Leg Titanium Leg Improved Carbon-fiber Leg > --- UTILITY ---------- High-capacity Storage Unit Improved Sensor Array Improved Signal Interpreter Improved Light Armor Plating > --- WEAPON ----------- Heavy Assault Rifle Improved Assault Rifle Flak Gun > --- INVENTORY -------- Light Deuterium Engine Light Nuclear Core Light Nuclear Core Light Nuclear Core Improved Deuterium Engine Aluminum Leg Aluminum Leg Improved Titanium Leg Improved Titanium Leg Compact Wheel Compact Wheel Improved Heat Sink High-capacity Storage Unit Matter Filter Improved Light Armor Plating Improved Light Armor Plating Heavy Assault Rifle Flak Cannon Grenade Launcher Rocket Launcher [Rating: 42] Favorites ----------- Power Ion Engine Engine Ion Engine Power Core Nuclear Core Propulsion Aluminum Leg Leg Aluminum Leg Wheel Compact Wheel Utility Improved Signal Interpreter Device Improved Sensor Array Storage High-capacity Storage Unit Processor Improved Signal Interpreter Protection Improved Light Armor Plating Weapon Heavy Assault Rifle Energy Gun Medium Laser Ballistic Gun Heavy Assault Rifle Ballistic Cannon Improved Light Cannon Launcher Rocket Launcher Build | -11 -10 -9 -8 -7 -7 ------- Run | Yrd Mat Mat Mat Fac Sto Slots Evolved 6 | . . 2 2 2 . Power 1 | . . . . 1 . Propulsion 2 | . . 1 1 . . Utility 2 | . . 1 1 . . Weapon 1 | . . . . 1 . Parts Attached 89 | 10 12 17 14 16 20 Power 10 | 1 . 1 1 3 4 Engine 7 | 1 . 1 1 2 2 Core 3 | . . . . 1 2 Reactor . | . . . . . . Propulsion 31 | 5 2 8 5 5 6 Treads . | . . . . . . Leg 23 | 2 . 8 2 5 6 Wheel 8 | 3 2 . 3 . . Hover . | . . . . . . Flight . | . . . . . . Utility 22 | 1 4 5 5 4 3 Device 11 | . 3 3 2 3 . Storage 3 | 1 1 . 1 . . Processor 1 | . . . 1 . . Hackware . | . . . . . . Protection 7 | . . 2 1 1 3 Artifact . | . . . . . . Weapon 26 | 3 6 3 3 4 7 Energy Gun 3 | 1 2 . . . . Energy Cannon . | . . . . . . Ballistic Gun 15 | 2 2 2 2 4 3 Ballistic Cannon 3 | . . 1 1 . 1 Launcher 5 | . 2 . . . 3 Special Weapon . | . . . . . . Impact Weapon . | . . . . . . Slashing Weapon . | . . . . . . Piercing Weapon . | . . . . . . Special Melee Weapon . | . . . . . . Unidentified Prototypes 1 | . . 1 . . . Parts Lost 37 | . . 1 8 3 25 Power 6 | . . . . . 6 Propulsion 13 | . . . 4 1 8 Utility 8 | . . 1 2 1 4 Weapon 10 | . . . 2 1 7 Highest Loss Streak 11 | . . 1 7 2 11 To Critical Strikes . | . . . . . . Average Slot Usage (%) 92 | . 91 92 90 99 86 Engine 9 | . 14 10 9 9 5 Core 2 | . . . . 4 6 Leg 22 | . . 33 14 26 24 Wheel 7 | . 27 . 16 3 . Device 9 | . 7 11 11 6 6 Storage 9 | . 14 11 9 7 7 Processor 3 | . . . 5 7 7 Protection 4 | . . 3 7 7 5 Energy Gun 3 | . 7 7 . . . Ballistic Gun 12 | . 16 10 8 19 7 Ballistic Cannon 3 | . . 3 9 2 1 Launcher 2 | . 3 . . . 10 Naked Turns . | . . . . . . Heaviest Build 75 | 13 31 39 64 75 71 Greatest Support 60 | 32 32 30 48 60 60 Greatest Overweight (x) 11 | . . 1 11 1 3 Average Overweight (x) . | . . . . 1 1 Largest Inventory Capacity 20 | 8 15 15 20 20 20 Average Capacity 16 | 6 11 15 17 20 20 Most Carried 20 | 5 12 15 19 20 20 Average Carried 13 | 4 7 12 12 19 13 Final Capacity 20 | 8 15 15 20 20 20 Final Carried 20 | 4 9 15 19 20 10 Class Distribution -------------------- 42% | Mutant 34% | Scavenger-Skirmisher 22% | Scavenger-Mutant Dominant Class ---------------- Mutant | -10/Materials Mutant | -9/Materials Scavenger-Mutant | -8/Materials Scavenger-Skirmisher | -7/Factory Scavenger-Skirmisher | -7/Storage Resources | -11 -10 -9 -8 -7 -7 ----------- Run | Yrd Mat Mat Mat Fac Sto Matter Collected 2176 | 236 106 546 534 507 247 Remotely . | . . . . . . Salvage Created 2334 | . 117 1048 474 413 282 Parts 122 | . 9 51 24 22 16 Haulers Intercepted 2 | . . 2 . . . Recyclers Shooed 5 | . 1 2 . . 2 Parts Field Recycled . | . . . . . . Retrieved Matter . | . . . . . . Parts Self-Destructed . | . . . . . . Prevented . | . . . . . . Kills | -11 -10 -9 -8 -7 -7 ------- Run | Yrd Mat Mat Mat Fac Sto Combat Hostiles Destroyed 51 | . 2 16 15 9 9 Guns 37 | . 2 16 7 9 3 Cannons 10 | . . . 8 . 2 AOE 4 | . . . . . 4 Classes Destroyed 12 | . 3 6 1 1 1 Worker 2 | . . 1 1 . . Builder 2 | . . 1 . . 1 Hauler 2 | . . 2 . . . Recycler 3 | . . 2 . 1 . Operator 1 | . 1 . . . . Watcher 4 | . 2 1 1 . . Swarmer 6 | . . . 3 3 . Grunt 28 | . 2 10 10 1 5 Duelist 2 | . . 1 1 . . Sentry 12 | . . 5 1 4 2 Hunter 1 | . . . . . 1 Programmer 2 | . . . . 1 1 Best Kill Streak 5 | . 2 4 4 3 5 Combat Bots Only 4 | . 2 4 4 3 4 Max Kills in Single Turn 2 | . 1 1 1 1 2 Gunslinging . | . . . . . . Exploded 2 | . . . . . 2 Melee . | . . . . . . Uniques/NPCs Destroyed . | . . . . . . Combat | -11 -10 -9 -8 -7 -7 -------- Run | Yrd Mat Mat Mat Fac Sto Hostile Shots Fired 885 | . 8 59 143 179 496 Missed 294 | . 1 15 41 46 191 Damage Taken 6186 | . 90 577 1541 1119 2859 Core 1137 | . 41 136 252 185 523 Absorbed by Shields . | . . . . . . Regen/Repaired (Parts) 180 | . 12 92 76 . . Core Remaining (%) 75 | 100 83 66 54 . . Volleys Fired 227 | . 14 70 67 34 42 Largest 3 | . 2 2 2 3 3 Hottest 99 | . 70 70 62 90 99 Shots Fired 469 | . 26 140 127 98 78 Gun 350 | . 24 131 60 90 45 Cannon 105 | . . 9 67 8 21 Launcher 14 | . 2 . . . 12 Special . | . . . . . . Kinetic 393 | . 23 79 127 98 66 Thermal 62 | . 1 61 . . . Explosive 14 | . 2 . . . 12 Electromagnetic . | . . . . . . Robot Hit Streak 15 | . 12 15 12 9 7 Robot Miss Streak 8 | . 2 4 2 8 8 Penetration Max . | . . . . . . Secondary Targets . | . . . . . . Shots Hit Robots 319 | . 15 100 89 66 49 Core Hits 165 | . 11 44 31 37 42 Critical Kills 1 | . . . . 1 . Critical Parts Destroyed . | . . . . . . Critical Strikes 14 | . . 8 4 2 . Burn 7 | . . 7 . . . Destroy 1 | . . . . 1 . Blast 6 | . . 1 4 1 . Melee Attacks . | . . . . . . Impact . | . . . . . . Slashing . | . . . . . . Piercing . | . . . . . . Sneak Attacks . | . . . . . . Combat Hostiles . | . . . . . . Follow-up Attacks . | . . . . . . Damage Inflicted 5619 | . 296 1306 1666 1094 1257 Guns 3568 | . 170 1199 701 1016 482 Cannons 1500 | . . 100 963 78 359 Explosions 542 | . 126 . . . 416 Melee . | . . . . . . Ramming 9 | . . 7 2 . . Kinetic 4509 | . 158 752 1664 1094 841 Thermal 559 | . 12 547 . . . Explosive 542 | . 126 . . . 416 Electromagnetic . | . . . . . . Impact . | . . . . . . Slashing . | . . . . . . Piercing . | . . . . . . Highest Corruption 1 | . . . . 1 1 Average Corruption 1 | . . . . 1 1 Corruption Purged . | . . . . . . Corruption Blocked . | . . . . . . Effects 5 | . . . . . 5 Message Errors 3 | . . . . . 3 Matter Fused 2 | . . . . . 2 Overload Shots . | . . . . . . Overflow Damage 42 | . 1 . 23 . 18 Projectiles 23 | . . . 23 . . Explosions 19 | . 1 . . . 18 Melee . | . . . . . . Knockbacks 34 | . . . 22 . 12 Impact . | . . . . . . Kinetic 32 | . . . 20 . 12 Secondary 2 | . . . 2 . . Self-Inflicted Damage . | . . . . . . Shots . | . . . . . . Rammed . | . . . . . . Targets Rammed 3 | . . 2 1 . . Kicked 3 | . . 2 1 . . Crushed . | . . . . . . Highest Temperature 280 | . 9 17 135 280 156 Average Temperature 64 | . 7 12 45 87 53 Received Heat Transfer 2214 | . 54 264 801 270 825 Siege Activations . | . . . . . . Robots Corrupted . | . . . . . . Combat Hostiles . | . . . . . . Parts Fried . | . . . . . . Impact Corruptions . | . . . . . . Robots Melted . | . . . . . . Combat Hostiles . | . . . . . . Parts Melted 9 | . . 9 . . . Heat Transferred 2183 | . 37 2146 . . . Parts Sabotaged . | . . . . . . Parts Stolen . | . . . . . . Parts Stripped . | . . . . . . Power Chain Reactions . | . . . . . . Alert | -11 -10 -9 -8 -7 -7 ------- Run | Yrd Mat Mat Mat Fac Sto Peak Influence 433 | . 119 311 433 232 249 Initial 196 | . . 10 111 196 55 Average 149 | . 64 165 247 138 106 Maximum Alert Level 2 | . . 1 2 1 1 Low Security (%) 68 | 100 100 56 41 77 76 Level 1 27 | . . 43 35 22 23 Level 2 3 | . . . 22 . . Level 3 . | . . . . . . Level 4 . | . . . . . . Level 5 . | . . . . . . High Security . | . . . . . . Max Security . | . . . . . . Squads Dispatched 13 | . . 2 5 1 5 Investigation 1 | . . . 1 . . Extermination 1 | . . . . 1 . Reinforcement 5 | . . 2 1 . 2 Assault . | . . . . . . Garrison 6 | . . . 3 . 3 Intercept . | . . . . . . Searches Triggered . | . . . . . . Construction Impeded . | . . . . . . Haulers Reinforced . | . . . . . . Active Scanning Responses . | . . . . . . Cargo Convoy Interrupts . | . . . . . . Stealth | -11 -10 -9 -8 -7 -7 --------- Run | Yrd Mat Mat Mat Fac Sto Distress Signals 6 | . . 2 . . 4 Communications Jammed . | . . . . . . Distress Signals . | . . . . . . Times Spotted 85 | . 6 22 28 12 17 Peak Tracking Total 6 | . 2 5 5 3 6 Tactical Retreats 10 | . . . 8 1 1 Traps | -11 -10 -9 -8 -7 -7 ------- Run | Yrd Mat Mat Mat Fac Sto Traps Triggered 2 | . 2 . . . . Indirectly . | . . . . . . Trap Hack Attempts . | . . . . . . Triggered . | . . . . . . Disarmed . | . . . . . . Reprogrammed . | . . . . . . Reused . | . . . . . . Traps Extracted . | . . . . . . Installed . | . . . . . . Triggered . | . . . . . . Machines | -11 -10 -9 -8 -7 -7 ---------- Run | Yrd Mat Mat Mat Fac Sto Machines Disabled 4 | . 1 1 1 . 1 Max in Single Turn 1 | . 1 1 1 . 1 Machines Repaired . | . . . . . . Machines Dismantled . | . . . . . . Machines Sabotaged . | . . . . . . Overloaded Fab Kills . | . . . . . . Hacking | -11 -10 -9 -8 -7 -7 --------- Run | Yrd Mat Mat Mat Fac Sto Machines Accessed 9 | . 4 3 1 . 1 Terminals 5 | . 3 1 . . 1 Fabricators . | . . . . . . Repair Stations 4 | . 1 2 1 . . Recycling Units . | . . . . . . Scanalyzers . | . . . . . . Garrison Access . | . . . . . . Total Hacks 31 | . 11 11 6 . 3 Successful 19 | . 8 7 3 . 1 Failed 12 | . 3 4 3 . 2 Catastrophic . | . . . . . . Database Lockouts . | . . . . . . Manual . | . . . . . . Terminals 12 | . 8 1 . . 3 Fabricators . | . . . . . . Repair Stations 19 | . 3 10 6 . . Recycling Units . | . . . . . . Scanalyzers . | . . . . . . Garrison Access . | . . . . . . Terminal Hacks 8 | . 6 1 . . 1 Prototype ID Bank 2 | . 1 1 . . . Open Door 1 | . . . . . 1 Emergency Access Points 1 | . 1 . . . . Alert Level 2 | . 2 . . . . Locate Traps 1 | . 1 . . . . Zone Layout 1 | . 1 . . . . Fabricator Hacks . | . . . . . . Repair Station Hacks 11 | . 2 6 3 . . Scan Component 6 | . 1 3 2 . . Repair 5 | . 1 3 1 . . Recycling Unit Hacks . | . . . . . . Scanalyzer . | . . . . . . Garrison Access Hacks . | . . . . . . Unauthorized Hacks . | . . . . . . Terminals . | . . . . . . Fabricators . | . . . . . . Repair Stations . | . . . . . . Recycling Units . | . . . . . . Scanalyzers . | . . . . . . Garrison Access . | . . . . . . Data Cores Recovered 1 | . 1 . . . . Used . | . . . . . . Hacking Detections 8 | . 3 3 1 . 1 Full Trace Events 4 | . 2 1 1 . . Feedback Events . | . . . . . . Feedback Blocked . | . . . . . . Robot Schematics Acquired . | . . . . . . Robots Built . | . . . . . . Authchips . | . . . . . . Time . | . . . . . . Total Robot Build Rating . | . . . . . . Part Schematics Acquired . | . . . . . . Parts Built . | . . . . . . Authchips . | . . . . . . Time . | . . . . . . Total Part Build Rating . | . . . . . . Parts Repaired 5 | . 1 3 1 . . Time 136 | . 26 78 32 . . Parts Recycled . | . . . . . . Recycled Matter . | . . . . . . Retrieved Matter . | . . . . . . Retrieved Components . | . . . . . . Parts Scanalyzed . | . . . . . . Part Schematics Acquired . | . . . . . . Parts Damaged . | . . . . . . Bothacking | -11 -10 -9 -8 -7 -7 ------------ Run | Yrd Mat Mat Mat Fac Sto Used RIF Installer . | . . . . . . Robots Hacked . | . . . . . . Non-combat . | . . . . . . Combat . | . . . . . . Robot Hacks Applied . | . . . . . . Relay Couplers Released . | . . . . . . Fabnet Peak Effective % . | . . . . . . Robots Rewired . | . . . . . . Allies Hacked . | . . . . . . Hacks Repelled . | . . . . . . Allies | -11 -10 -9 -8 -7 -7 -------- Run | Yrd Mat Mat Mat Fac Sto Total Allies . | . . . . . . Largest Group . | . . . . . . Highest-Rated Group . | . . . . . . Highest-Rated Ally . | . . . . . . Total Orders . | . . . . . . Ally Attacks . | . . . . . . Total Damage . | . . . . . . Kills . | . . . . . . Allies Corrupted . | . . . . . . Allies Melted . | . . . . . . Intel | -11 -10 -9 -8 -7 -7 ------- Run | Yrd Mat Mat Mat Fac Sto Robot Analysis Total . | . . . . . . Derelict Logs Recovered . | . . . . . . Drone Launches . | . . . . . . Drone Recoveries . | . . . . . . Exploration | -11 -10 -9 -8 -7 -7 ------------- Run | Yrd Mat Mat Mat Fac Sto Turns Passed 4108 | 67 484 1172 707 1084 594 Spaces Moved 1907 | 51 376 466 318 493 203 Core 19 | 18 . . 1 . . Treads . | . . . . . . Legs 1148 | 31 . 466 94 354 203 Wheels 740 | 2 376 . 223 139 . Hover . | . . . . . . Flight . | . . . . . . Fastest Speed 50 | 50 100 120 100 115 192 Average Speed 143 | 94 100 145 126 170 194 Slowest Speed 600 | 120 100 190 600 192 340 Overloaded Moves . | . . . . . . Propulsion Burnouts . | . . . . . . Robots Hopped . | . . . . . . Cave-ins Triggered . | . . . . . . Exploration Rate (%) 33 | 4 64 53 21 14 42 Regions Visited 5 Branch Regions 1 Pre-discovered Areas . | . . . . . . Known Exits Taken 2 | . . . 1 1 . Unknown Exits Taken 3 | 1 1 1 . . . Scrap Searched . | . . . . . . Spaces Dug . | . . . . . . Terrain Destroyed 41 | . 1 . 3 . 37 Melee . | . . . . . . Projectile 3 | . . . 3 . . AOE 38 | . 1 . . . 37 Terrain Rammed . | . . . . . . Walls Destroyed . | . . . . . . Machines Disabled . | . . . . . . Actions | -11 -10 -9 -8 -7 -7 --------- Run | Yrd Mat Mat Mat Fac Sto Total 2836 | 65 458 819 495 668 331 Wait 511 | . 42 239 71 100 59 Move 1902 | 50 375 465 317 492 203 Hop . | . . . . . . Pick Up 73 | 5 13 16 20 12 7 Fast Attach 9 | 5 . 4 . . . Attach 47 | 1 6 4 11 8 17 Detach 2 | . . . . 2 . Swap 33 | 4 6 9 3 8 3 Drop 29 | . 2 10 5 12 . Fire 227 | . 14 70 67 34 42 Melee . | . . . . . . Ram . | . . . . . . Kick 3 | . . 2 1 . . Crush . | . . . . . . Escape Stasis . | . . . . . . Rewire . | . . . . . . Trap . | . . . . . . Miscellaneous . | . . . . . . Route ------- -11/Scrapyard -10/Materials (discovered 2 exits: *Mat / [*Min]) -9/Materials (discovered 2 exits: *Mat / [*Min]) -8/Materials -7/Factory -7/Storage History --------- Turn | Location | Event 13 | -11/Scrapyard | Discovered new exit (range 16) 68 | -11/Scrapyard | Entered Materials 310 | -10/Materials | Build established: Mutant 413 | -10/Materials | Repaired Com. Wheel 455 | -10/Materials | Discovered new exit (range 16) 536 | -10/Materials | Discovered new exit (range 16) 552 | -10/Materials | Entered another Materials area 552 | -9/Materials | Evolved 2 slots: Propulsion x1, Utility x1 591 | -9/Materials | Repaired Assault Rifle 618 | -9/Materials | Repaired Heat Sink 1296 | -9/Materials | Discovered new exit (range 8) 1602 | -9/Materials | Repaired Lgt. Armor Plating 1716 | -9/Materials | Discovered new exit (range 3) 1724 | -9/Materials | Entered another Materials area 1724 | -8/Materials | Evolved 2 slots: Propulsion x1, Utility x1 1913 | -8/Materials | Lost 7 parts (3n2u2w) 2076 | -8/Materials | Repaired Hvy. Assault Rifle 2107 | -8/Materials | Garrison activated, responded to threat 2334 | -8/Materials | Build established: Scavenger-Mutant 2427 | -8/Materials | Discovered new exit (range 3) 2428 | -8/Materials | Identified exit to Factory 2431 | -8/Materials | Entered Factory 2431 | -7/Factory | Evolved 2 slots: Power x1, Weapon x1 2746 | -7/Factory | Build established: Scavenger-Skirmisher 3419 | -7/Factory | Discovered new exit (range 6) 3513 | -7/Factory | Identified exit to Storage 3515 | -7/Factory | Entered Storage 3624 | -7/Storage | Garrison activated, responded to threat 3684 | -7/Storage | Lost 10 parts (3p3n1u3w) 3684 | -7/Storage | Core integrity fell below 50% 3761 | -7/Storage | Lost 4 parts (1p1n1u1w) 4061 | -7/Storage | Core integrity fell below 20% 4109 | -7/Storage | Destroyed by Y-54 Guardian with Gatling Laser Last Messages --------------- 04054_ Imp. Light Armor Plating destroyed. 04072_ Imp. Deuterium Engine destroyed. 04075_ U-05 Engineer lays Concrete. 04078_ ZRWCW>LDY 47PKKPLWEQ ,JR&WETG1MQ 04078_ The unstable cave ceiling collapses. 04078_ U-05 Engineer lays Concrete. 04079_ K-01 Serf collects debris. 04079_ U-05 Engineer lays Concrete. 04083_ K-01 Serf collects debris. 04083_ U-05 Engineer lays Concrete. 04088_ Imp. Sensor Array destroyed. 04089_ U-05 Engineer lays Concrete. 04091_ U-05 Engineer builds a Wall. 04095_ Imp. Titanium Leg destroyed. 04096_ ALERT: Hostiles spotted, dispatching reinforcements to Terminal S012. 04099_ U-05 Engineer builds a Wall. 04103_ Carbon-fiber Leg destroyed. 04104_ Minigun destroyed. 04105_ U-05 Engineer lays Concrete. Map ----- +----------------------------------------------------+ | ?????# #????????????????????? | | ?????# #????????????????????? | | ?????# "" #####????????????????? | | ?????# "T +????????????????? | | ?????#^ "" #????????????????? | | ?????# ######+###???????? | | ?????# ??????? | | ?????# ??????? | | ?????# ??????? | | ?????# #####+#######?????????????? | | ?????# # #???????????????? | | ?????# # """ """ #???????????????? | | ?????# #Y"""Y""" #???????????????? | | ?????# # """ """ #???????????????? | | ?????# # #???????????????? | | ?????# # Y #???????????????? | | ?????# # #???????????????? | | ?????# # #???????????????? | | ?????# # # # #???????????????? | | ?????# ##???????????????? | | ?????# #????????????????? | | ?????# # #?????????????+??? | | ?????# # #???????????? #??? | | ?????# # #???????????? #??? | | ?????# # /##########???????? #??? | | ?????# k@r #??????? #### | | ?????# #?????? ### | | ?????# ####### T" | | ?????# a k k kk " | | ?????# ############## # | | ?????# ?????????????# #?? ### | | ?????# ?????????????# ####### | | ?????# ?????????????# # | | ?????# ?????????????# # | | ?????# ?????????????# # " | | ?????# ?????????????# # " | | ?????# ?????????????# # ! | | ?????? ???????????????# # | | ??????????????????????# # | | ??????????????????????# ##+###### | | ??????????????????????# # !!! | | ??????????????????????# # !! | | ??????????????????????# # ! | | ??????????????????????+ + | | ??????????????????????#+##+#### "T" | | ??????????????????????# ## """ | | ??????????????????????# ####### | | ??????????????????????# ! #?????? | | ??????????????????????# !#?????? | | ??????????????????????# [ #?????? | +----------------------------------------------------+ Best States ------------- Heat Dissipation 41 Energy Generation 25 Energy Capacity 445 Matter Stores 300 Matter Capacity 300 Sight Range 16 Robot Scan Range 15 Terrain Scan Density 10 Armor Coverage 225 Evasion (%) 55 Item Schematics ----------------- None Robot Schematics ------------------ None Fabricated ------------ Nothing Alien Tech Used ----------------- None Achievements -------------- None Challenges ------------ None Game ------ Seed UtilityRefineryRailgun Manual? 0 Play Time 00:41:59 Cumulative 15.6 hours Start 2024.04.11 @ 11:41:05 End 2024.04.11 @ 20:04:05 Sessions 3 Manual Loads 0 Difficulty Rogue Special Mode None Game No. 25 Rogue 25 Adventurer 0 Explorer 0 Win Type - Total 0 Types 0/0/0/0/0/0/0/0/0 Lore% 8 Gallery% 19 Achievement% 16 Wizard Run 0 Options --------- Layout 0 ASCII 0 Keyboard 0 Movement Mouse Keybinds 0 Fullscreen 2 Font 24/X11 Map View 76x50 Zoom Use 0% Tactical HUD 1 Map Filters NONE Filters NONE Steam 1 RUN: 9c9c5b01-a086-484c-8f6d-21f497a262f3